fUST/lending_fUST_20240414
["ID","MTS","AMOUNT","RATE_DAILY","PERIOD"]
[322536547,1713041437575,-500.0,0.00164383,120]
[322536548,1713041437586,-500.0,0.00164383,120]
[322536549,1713041437597,-239.11,0.00164383,120]
[322536550,1713041437608,-500.0,0.00164383,120]
[322536551,1713041437619,-1655.23,0.00164383,120]
[322536552,1713041437630,-2239.15,0.00164383,120]
[322536553,1713041437641,-500.0,0.00164383,120]
[322536555,1713041437656,-500.0,0.00164383,21]
[322536557,1713041437669,-500.0,0.00164383,120]
[322536559,1713041437682,-363.28,0.00164383,120]
[322536561,1713041437692,-500.0,0.00164383,120]
[322536563,1713041437702,-500.0,0.00164383,120]
[322536565,1713041437714,-188.39933284,0.00166402,120]
[322536567,1713041437724,-1000.0,0.0018,120]
[322536569,1713041437735,-266.88683774,0.00186202,120]
[322536571,1713041437745,-500.0,0.00186297,120]
[322536573,1713041437758,-500.0,0.00186297,120]
[322536575,1713041437770,-500.0,0.00186297,120]
[322536577,1713041437780,-500.0,0.00186297,120]
[322536579,1713041437790,-500.0,0.00186297,120]
[322536588,1713041437886,-500.0,0.00186297,120]
[322536590,1713041437923,-500.0,0.00186297,120]
[322536593,1713041437935,-500.0,0.00186297,120]
[322536595,1713041437946,-500.0,0.001863,120]
[322536597,1713041437957,-253.63399667,0.001863,120]
[322536599,1713041437967,-500.0,0.001863,120]
[322536601,1713041437979,-500.0,0.001863,120]
[322536603,1713041437990,-500.0,0.001863,120]
[322536605,1713041438001,-500.0,0.001863,120]
[322536607,1713041438013,-565.25,0.001863,120]
[322536609,1713041438025,-500.0,0.001863,120]
[322536611,1713041438038,-687.61,0.001863,120]
[322536613,1713041438049,-500.0,0.001863,120]
[322536615,1713041438061,-500.0,0.001863,120]
[322536617,1713041438073,-500.0,0.001863,120]
[322536619,1713041438084,-500.0,0.001863,120]
[322536621,1713041438096,-2239.15,0.001863,120]
[322536623,1713041438107,-500.0,0.001863,21]
[322536625,1713041438118,-500.0,0.001863,120]
[322536627,1713041438129,-500.0,0.001863,120]
[322536629,1713041438140,-500.0,0.00186301,120]
[322536631,1713041438158,-500.0,0.00186301,120]
[322536633,1713041438168,-318.8,0.00186301,120]
[322536636,1713041438181,-500.0,0.00186301,120]
[322536638,1713041438190,-500.0,0.00186301,120]
[322536640,1713041438199,-500.0,0.00186301,120]
[322536641,1713041438209,-500.0,0.00186301,120]
[322536642,1713041438219,-500.0,0.00186301,120]
[322536643,1713041438229,-354.80947204,0.00186301,120]
[322536644,1713041438239,-500.0,0.00186301,120]
[322536649,1713041438248,-500.0,0.00186301,120]
[322536653,1713041438257,-378.02443372,0.00186301,120]
[322536656,1713041438267,-500.0,0.00186301,120]
[322536659,1713041438278,-500.0,0.00186301,120]
[322536662,1713041438287,-500.0,0.00186301,120]
[322536665,1713041438297,-500.0,0.00186301,120]
[322536668,1713041438306,-500.0,0.00186301,120]
[322536671,1713041438315,-506.03167518,0.00186301,120]
[322536674,1713041438325,-500.0,0.00186301,120]
[322536678,1713041438335,-213.63359127,0.00186301,120]
[322536681,1713041438344,-500.0,0.00186301,120]
[322536684,1713041438353,-500.0,0.00186301,120]
[322536686,1713041438363,-500.0,0.00186301,120]
[322536688,1713041438372,-527.49206263,0.00186301,120]
[322536690,1713041438381,-500.0,0.00186301,120]
[322536692,1713041438391,-852.48,0.00186301,120]
[322536694,1713041438404,-581.91,0.00186301,120]
[322536696,1713041438413,-500.0,0.00186301,120]
[322536698,1713041438422,-500.0,0.00186301,120]
[322536700,1713041438431,-1655.23,0.00186301,120]
[322536702,1713041438440,-500.0,0.00186301,120]
[322536704,1713041438449,-500.0,0.00186301,120]
[322536706,1713041438459,-163.862063,0.00190779,120]
[322536708,1713041438468,-156.98429157,0.00193,120]
[322536710,1713041438477,-517.14266981,0.002,20]
[322536712,1713041438487,-1000.0,0.002,120]
[322536714,1713041438496,-183.63846851,0.002,120]
[322536716,1713041438505,-500.0,0.00208215,120]
[322536718,1713041438514,-500.0,0.00208215,120]
[322536719,1713041438523,-500.0,0.00208215,120]
[322536721,1713041438533,-500.0,0.00208215,120]
[322536723,1713041438542,-500.0,0.00208215,120]
[322536725,1713041438552,-500.0,0.00208215,120]
[322536727,1713041438562,-500.0,0.00208215,120]
[322536729,1713041438572,-500.0,0.00208217,120]
[322536732,1713041438582,-500.0,0.00208217,120]
[322536733,1713041438592,-500.0,0.00208217,120]
[322536735,1713041438602,-500.0,0.00208217,120]
[322536737,1713041438612,-565.25,0.00208217,120]
[322536739,1713041438622,-500.0,0.00208217,120]
[322536741,1713041438632,-500.0,0.00208218,120]
[322536743,1713041438643,-687.61,0.00208218,120]
[322536745,1713041438658,-500.0,0.00208218,120]
[322536747,1713041438671,-500.0,0.00208218,120]
[322536749,1713041438684,-500.0,0.00208218,120]
[322536751,1713041438693,-2239.15,0.00208218,120]
[322536753,1713041438702,-500.0,0.00208218,21]
[322536755,1713041438712,-500.0,0.00208218,120]
[322536758,1713041438723,-500.0,0.00208218,120]
[322536761,1713041438732,-500.0,0.00208219,120]
[322536764,1713041438742,-562.74810054,0.00208219,120]
[322536767,1713041438752,-500.0,0.00208219,120]
[322536770,1713041438761,-500.0,0.00208219,120]
[322536772,1713041438770,-500.0,0.00208219,120]
[322536774,1713041438780,-500.0,0.00208219,120]
[322536776,1713041438789,-506.99408068,0.00208219,120]
[322536778,1713041438798,-302.32765203,0.00208219,120]
[322536780,1713041438807,-500.0,0.00208219,120]
[322536782,1713041438816,-387.23,0.00208219,120]
[322536784,1713041438826,-500.0,0.00208219,120]
[322536786,1713041438835,-500.0,0.00208219,120]
[322536788,1713041438844,-625.08,0.00208219,120]
[322536789,1713041438853,-500.0,0.00208219,120]
[322536791,1713041438863,-500.0,0.00208219,120]
[322536793,1713041438873,-500.0,0.00208219,120]
[322536795,1713041438882,-852.48,0.00208219,120]
[322536797,1713041438892,-581.91,0.00208219,120]
[322536799,1713041438906,-500.0,0.00208219,120]
[322536801,1713041438916,-500.0,0.00208219,120]
[322536803,1713041438925,-1655.23,0.00208219,120]
[322536805,1713041438935,-154.79389819,0.00215385,120]
[322536807,1713041438946,-266.88683774,0.00230037,120]
[322536809,1713041438955,-500.0,0.00230133,120]
[322536812,1713041438965,-510.71677206,0.00230133,120]
[322536813,1713041438974,-500.0,0.00230133,120]
[322536815,1713041438983,-500.0,0.00230133,120]
[322536817,1713041438993,-500.0,0.00230133,120]
[322536819,1713041439002,-500.0,0.00230135,120]
[322536821,1713041439011,-500.0,0.00230135,120]
[322536823,1713041439020,-500.0,0.00230135,120]
[322536825,1713041439029,-500.0,0.00230135,120]
[322536827,1713041439039,-565.25,0.00230135,120]
[322536829,1713041439048,-277.55,0.00230135,120]
[322536831,1713041439058,-500.0,0.00230136,120]
[322536832,1713041439068,-500.0,0.00230136,120]
[322536833,1713041439077,-500.0,0.00230136,120]
[322536834,1713041439087,-500.0,0.00230136,120]
[322536835,1713041439096,-500.0,0.00230136,120]
[322536836,1713041439105,-587.53,0.00230136,120]
[322536837,1713041439114,-500.0,0.00230136,120]
[322536838,1713041439124,-500.0,0.00230136,120]
[322536839,1713041439132,-500.0,0.00230136,120]
[322536840,1713041439142,-500.0,0.00230136,120]
[322536841,1713041439155,-500.0,0.00230136,120]
[322536842,1713041439164,-500.0,0.00230136,120]
[322536843,1713041439173,-852.48,0.00230136,120]
[322536844,1713041439183,-687.61,0.00230136,120]
[322536845,1713041439192,-500.0,0.00230136,120]
[322536846,1713041439202,-581.91,0.00230136,120]
[322536847,1713041439211,-500.0,0.00230136,120]
[322536848,1713041439220,-391.87,0.00230136,120]
[322536849,1713041439230,-500.0,0.00230136,120]
[322536850,1713041439239,-500.0,0.00230136,120]
[322536851,1713041439249,-1655.23,0.00230136,120]
[322536852,1713041439258,-2239.15,0.00230136,120]
[322536853,1713041439267,-500.0,0.00230136,21]
[322536854,1713041439277,-500.0,0.00230136,120]
[322536855,1713041439286,-500.0,0.00230136,120]
[322536856,1713041439295,-154.79389819,0.00230769,120]
[322536857,1713041439304,-154.79389819,0.00246154,120]
[322536858,1713041439314,-1000.0,0.0025,120]
[322536859,1713041439323,-500.0,0.00252051,120]
[322536860,1713041439333,-500.0,0.00252051,120]
[322536861,1713041439342,-538.1,0.00252051,120]
[322536862,1713041439352,-500.0,0.00252051,120]
[322536863,1713041439361,-500.0,0.00252053,120]
[322536864,1713041439371,-500.0,0.00252053,120]
[322536865,1713041439380,-510.96277473,0.00252053,120]
[322536866,1713041439390,-500.0,0.00252053,120]
[322536867,1713041439402,-565.25,0.00252053,120]
[322536868,1713041439411,-500.0,0.00252054,120]
[322536869,1713041439420,-546.89910588,0.00252054,120]
[322536870,1713041439430,-500.0,0.00252054,120]
[322536871,1713041439440,-500.0,0.00252054,120]
[322536872,1713041439449,-500.0,0.00252054,120]
[322536873,1713041439459,-500.0,0.00252054,120]
[322536874,1713041439469,-500.0,0.00252054,120]
[322536875,1713041439478,-500.0,0.00252054,120]
[322536876,1713041439488,-500.0,0.00252054,120]
[322536877,1713041439497,-852.48,0.00252054,120]
[322536878,1713041439507,-687.61,0.00252054,120]
[322536879,1713041439516,-500.0,0.00252054,120]
[322536880,1713041439526,-581.91,0.00252054,120]
[322536881,1713041439535,-500.0,0.00252054,120]
[322536882,1713041439544,-500.0,0.00252054,120]
[322536883,1713041439554,-500.0,0.00252054,120]
[322536884,1713041439565,-1655.23,0.00252054,120]
[322536885,1713041439574,-2239.15,0.00252054,120]
[322536886,1713041439584,-500.0,0.00252054,21]
[322536887,1713041439594,-500.0,0.00252054,120]
[322536888,1713041439604,-294.38645777,0.00252054,120]
[322536889,1713041439613,-1000.0,0.0025803,120]
[322536890,1713041439623,-154.79389819,0.00261538,120]
[322536891,1713041439632,-153.0,0.00273178,120]
[322536892,1713041439642,-153.0,0.00273178,120]
[322536893,1713041439655,-153.0,0.00273178,120]
[322536894,1713041439664,-153.0,0.00273178,120]
[322536895,1713041439680,-153.0,0.00273178,120]
[322536896,1713041439690,-153.0,0.00273178,120]
[322536897,1713041439698,-153.0,0.00273178,120]
[322536898,1713041439708,-153.0,0.00273178,120]
[322536899,1713041439718,-11624.43565509,0.00273871,30]
[322536900,1713041439728,-266.88683774,0.00273873,120]
[322536901,1713041439737,-500.0,0.00273969,120]
[322536902,1713041439748,-500.0,0.00273969,120]
[322536903,1713041439758,-500.0,0.00273969,120]
[322536904,1713041439768,-154.86062544,0.0027397,30]
[322536905,1713041439778,-183.44182176,0.0027397,30]
[322536906,1713041439788,-155.26211876,0.0027397,30]
[322536907,1713041439797,-155.000001,0.0027397,30]
[322536908,1713041439807,-155.48020431,0.0027397,30]
[322536909,1713041439818,-163.23661624,0.0027397,30]
[322536910,1713041439827,-601.81614276,0.0027397,30]
[322536911,1713041439840,-1579.80828461,0.0027397,30]
[322536914,1713041439858,-680.90479946,0.0027397,30]
[322536917,1713041439879,-172.40205419,0.0027397,30]
[322536922,1713041439891,-2121.71958913,0.0027397,30]
[322536926,1713041439909,-9117.58284736,0.0027397,120]
[322536929,1713041439921,-2053.07968818,0.0027397,30]
[322536933,1713041439934,-8269.92239886,0.0027397,30]
[322536936,1713041439945,-155.06582961,0.0027397,30]
[322536939,1713041439956,-155.26904192,0.0027397,30]
[322536942,1713041439969,-155.71733817,0.0027397,30]
[322536944,1713041439980,-500.0,0.00273971,120]
[322536946,1713041439992,-500.0,0.00273971,120]
[322536948,1713041440002,-374.44,0.00273971,120]
[322536950,1713041440013,-565.25,0.00273971,120]
[322536952,1713041440024,-500.0,0.00273972,120]
[322536954,1713041440035,-500.0,0.00273972,120]
[322536956,1713041440046,-500.0,0.00273972,120]
[322536958,1713041440058,-333.56,0.00273972,120]
[322536960,1713041440070,-500.0,0.00273972,120]
[322536962,1713041440081,-500.0,0.00273972,120]
[322536964,1713041440093,-156.8,0.00273972,120]
[322536966,1713041440105,-500.0,0.00273972,120]
[322536968,1713041440117,-852.48,0.00273972,120]
[322536970,1713041440129,-687.61,0.00273972,120]
[322536972,1713041440141,-500.0,0.00273972,120]
[322536974,1713041440162,-581.91,0.00273972,120]
[322536976,1713041440173,-500.0,0.00273972,120]
[322536978,1713041440184,-500.0,0.00273972,120]
[322536980,1713041440197,-500.0,0.00273972,120]
[322536982,1713041440208,-1655.23,0.00273972,120]
[322536984,1713041440221,-2239.15,0.00273972,120]
[322536986,1713041440232,-500.0,0.00273972,21]
[322536987,1713041440244,-500.0,0.00273972,120]
[322536989,1713041440255,-151.0,0.00273973,120]
[322536991,1713041440266,-151.0,0.00273973,120]
[322536993,1713041440277,-151.0,0.00273973,120]
[322536997,1713041440311,-151.0,0.00273973,120]
[322536999,1713041440323,-151.0,0.00273973,120]
[322537002,1713041440336,-151.0,0.00273973,120]
[322537004,1713041440346,-151.0,0.00273973,120]
[322537007,1713041440358,-151.0,0.00273973,120]
[322537010,1713041440368,-151.0,0.00273973,120]
[322537013,1713041440380,-151.0,0.00273973,120]
[322537015,1713041440389,-286.086684,0.00273973,120]
[322537018,1713041440403,-151.0,0.00273973,120]
[322537021,1713041440414,-151.0,0.00273973,120]
[322537023,1713041440424,-151.0,0.00273973,120]
[322537025,1713041440434,-234.466642,0.00273973,120]
[322537027,1713041440444,-151.0,0.00273973,120]
[322537029,1713041440454,-151.300064,0.00273973,120]
[322537032,1713041440463,-151.0,0.00273973,120]
[322537034,1713041440475,-151.0,0.00273973,120]
[322537035,1713041440484,-151.0,0.00273973,120]
[322537037,1713041440494,-151.0,0.00273973,120]
[322537039,1713041440504,-151.0,0.00273973,120]
[322537040,1713041440515,-151.0,0.00273973,120]
[322537042,1713041440525,-151.0,0.00273973,120]
[322537044,1713041440535,-151.0,0.00273973,120]
[322537046,1713041440545,-151.0,0.00273973,120]
[322537049,1713041440555,-181.817776,0.00273973,120]
[322537052,1713041440566,-151.0,0.00273973,120]
[322537054,1713041440577,-151.0,0.00273973,120]
[322537057,1713041440588,-1790.437212,0.00273973,14]
[322537060,1713041440598,-1790.437212,0.00273973,14]
[322537062,1713041440608,-1790.437212,0.00273973,14]
[322537064,1713041440618,-1790.437212,0.00273973,14]
[322537066,1713041440628,-1790.437212,0.00273973,14]
[322537068,1713041440638,-1790.437212,0.00273973,14]
[322537070,1713041440654,-1790.437212,0.00273973,14]
[322537072,1713041440668,-1790.437212,0.00273973,14]
[322537074,1713041440684,-1790.437212,0.00273973,14]
[322537075,1713041440695,-1790.437212,0.00273973,14]
[322537077,1713041440706,-1790.437212,0.00273973,14]
[322537078,1713041440717,-1790.437212,0.00273973,14]
[322537079,1713041440728,-1790.437212,0.00273973,14]
[322537080,1713041440739,-1790.437212,0.00273973,14]
[322537081,1713041440752,-1790.437212,0.00273973,14]
[322537082,1713041440764,-1790.437212,0.00273973,14]
[322537083,1713041440775,-1790.437212,0.00273973,14]
[322537084,1713041440786,-1790.437212,0.00273973,14]
[322537086,1713041440797,-1790.437212,0.00273973,14]
[322537087,1713041440808,-151.0,0.00273973,120]
[322537088,1713041440821,-151.0,0.00273973,120]
[322537089,1713041440832,-1790.437215,0.00273973,14]
[322537090,1713041440843,-151.0,0.00273973,120]
[322537091,1713041440854,-151.0,0.00273973,120]
[322537092,1713041440866,-151.0,0.00273973,120]
[322537094,1713041440878,-151.0,0.00273973,120]
[322537096,1713041440891,-151.0,0.00273973,120]
[322537097,1713041440912,-151.0,0.00273973,120]
[322537098,1713041440923,-151.0,0.00273973,120]
[322537099,1713041440934,-151.0,0.00273973,120]
[322537100,1713041440945,-151.0,0.00273973,120]
[322537101,1713041440956,-151.0,0.00273973,120]
[322537102,1713041440967,-151.0,0.00273973,120]
[322537103,1713041440978,-151.0,0.00273973,120]
[322537104,1713041440995,-227.200806,0.00273973,120]
[322537105,1713041441006,-151.0,0.00273973,120]
[322537106,1713041441018,-151.0,0.00273973,120]
[322537107,1713041441029,-151.0,0.00273973,120]
[322537108,1713041441040,-239.442113,0.00273973,120]
[322537109,1713041441051,-151.0,0.00273973,120]
[322537110,1713041441063,-151.0,0.00273973,120]
[322537111,1713041441074,-155.387122,0.00273973,120]
[322537112,1713041441086,-151.0,0.00273973,120]
[322537113,1713041441099,-350.254094,0.00273973,120]
[322537114,1713041441110,-350.254094,0.00273973,120]
[322537115,1713041441121,-350.254094,0.00273973,120]
[322537116,1713041441132,-350.254094,0.00273973,120]
[322537117,1713041441142,-350.254094,0.00273973,120]
[322537118,1713041441164,-350.254094,0.00273973,120]
[322537119,1713041441176,-350.254094,0.00273973,120]
[322537120,1713041441187,-350.254094,0.00273973,120]
[322537121,1713041441202,-350.254094,0.00273973,120]
[322537122,1713041441214,-350.254094,0.00273973,120]
[322537123,1713041441225,-350.254094,0.00273973,120]
[322537125,1713041441236,-350.254094,0.00273973,120]
[322537127,1713041441248,-350.254094,0.00273973,120]
[322537128,1713041441260,-350.254094,0.00273973,120]
[322537130,1713041441271,-350.254094,0.00273973,120]
[322537132,1713041441282,-350.254094,0.00273973,120]
[322537134,1713041441295,-350.254094,0.00273973,120]
[322537135,1713041441309,-350.254094,0.00273973,120]
[322537137,1713041441320,-350.254094,0.00273973,120]
[322537139,1713041441332,-350.254104,0.00273973,120]
[322537140,1713041441343,-151.0,0.00273973,120]
[322537142,1713041441354,-151.0,0.00273973,120]
[322537144,1713041441365,-151.0,0.00273973,120]
[322537146,1713041441377,-151.0,0.00273973,120]
[322537148,1713041441389,-151.0,0.00273973,120]
[322537149,1713041441406,-151.0,0.00273973,120]
[322537151,1713041441418,-151.0,0.00273973,120]
[322537153,1713041441429,-151.0,0.00273973,120]
[322537154,1713041441440,-151.0,0.00273973,120]
[322537155,1713041441450,-151.0,0.00273973,120]
[322537156,1713041441461,-151.0,0.00273973,120]
[322537157,1713041441472,-151.0,0.00273973,120]
[322537158,1713041441482,-198.542405,0.00273973,120]
[322537159,1713041441494,-151.0,0.00273973,120]
[322537160,1713041441504,-151.0,0.00273973,120]
[322537161,1713041441516,-151.0,0.00273973,120]
[322537162,1713041441527,-151.0,0.00273973,120]
[322537163,1713041441538,-151.642072,0.00273973,120]
[322537164,1713041441549,-151.0,0.00273973,120]
[322537165,1713041441560,-151.0,0.00273973,120]
[322537166,1713041441572,-151.0,0.00273973,120]
[322537167,1713041441583,-151.0,0.00273973,120]
[322537168,1713041441594,-151.0,0.00273973,120]
[322537169,1713041441604,-151.0,0.00273973,120]
[322537170,1713041441615,-151.0,0.00273973,120]
[322537171,1713041441625,-151.0,0.00273973,120]
[322537172,1713041441635,-151.0,0.00273973,120]
[322537173,1713041441644,-151.0,0.00273973,120]
[322537174,1713041441662,-151.0,0.00273973,120]
[322537175,1713041441673,-151.0,0.00273973,120]
[322537176,1713041441685,-151.0,0.00273973,120]
[322537177,1713041441696,-151.0,0.00273973,120]
[322537178,1713041441706,-151.0,0.00273973,120]
[322537179,1713041441717,-247.488042,0.00273973,120]
[322537180,1713041441728,-153.0,0.00274,120]
[322537181,1713041441738,-153.0,0.00274,120]
[322537182,1713041441748,-153.0,0.00274,120]
[322537183,1713041441761,-153.0,0.00274,120]
[322537184,1713041441771,-153.0,0.00274,120]
[322537186,1713041441781,-154.79389819,0.00276923,120]
[322537187,1713041441791,-154.6513495,0.00287178,120]
[322537188,1713041441802,-202.9164481,0.00287178,120]
[322537190,1713041441812,-625.2098317,0.00287998,30]
[322537191,1713041441822,-154.95351395,0.00287998,30]
[322537192,1713041441832,-360.86438748,0.00287998,30]
[322537193,1713041441843,-508.3,0.00287998,30]
[322537194,1713041441855,-155.43632054,0.00287998,30]
[322537195,1713041441866,-13976.02526107,0.00287998,30]
[322537196,1713041441877,-154.95351395,0.00287999,30]
[322537197,1713041441887,-8657.11256632,0.00287999,120]
[322537198,1713041441904,-154.79389819,0.00292308,120]
[322537199,1713041441916,-500.0,0.00295886,120]
[322537200,1713041441927,-500.0,0.00295886,120]
[322537201,1713041441939,-500.0,0.00295886,120]
[322537202,1713041441950,-500.0,0.00295889,120]
[322537203,1713041441961,-500.0,0.00295889,120]
[322537204,1713041441971,-565.25,0.00295889,120]
[322537205,1713041441981,-500.0,0.00295889,120]
[322537206,1713041441992,-687.61,0.00295889,120]
[322537207,1713041442002,-500.0,0.00295889,120]
[322537208,1713041442013,-500.0,0.00295889,120]
[322537209,1713041442023,-2239.15,0.00295889,120]
[322537210,1713041442033,-431.17,0.00295889,21]
[322537211,1713041442043,-500.0,0.00295889,120]
[322537212,1713041442053,-500.0,0.0029589,120]
[322537213,1713041442063,-500.0,0.0029589,120]
[322537214,1713041442073,-500.0,0.0029589,120]
[322537215,1713041442083,-500.0,0.0029589,120]
[322537216,1713041442093,-269.43,0.0029589,120]
[322537217,1713041442103,-852.48,0.0029589,120]
[322537218,1713041442113,-581.91,0.0029589,120]
[322537219,1713041442124,-576.48,0.0029589,120]
[322537220,1713041442134,-500.0,0.0029589,120]
[322537221,1713041442143,-1655.23,0.0029589,120]
[322537222,1713041442158,-300.0,0.003,120]
[322537223,1713041442168,-154.79389819,0.00307692,120]
[322537224,1713041442178,-500.0,0.00317804,120]
[322537225,1713041442187,-500.0,0.00317804,120]
[322537226,1713041442197,-530.7,0.00317804,120]
[322537227,1713041442207,-500.0,0.00317806,120]
[322537228,1713041442217,-500.0,0.00317806,120]
[322537229,1713041442227,-565.25,0.00317806,120]
[322537230,1713041442236,-500.0,0.00317807,120]
[322537231,1713041442246,-687.61,0.00317807,120]
[322537232,1713041442255,-500.0,0.00317807,120]
[322537233,1713041442265,-500.0,0.00317807,120]
[322537234,1713041442276,-2239.15,0.00317807,120]
[322537235,1713041442286,-500.0,0.00317807,120]
[322537236,1713041442295,-500.0,0.00317808,120]
[322537237,1713041442306,-500.0,0.00317808,120]
[322537238,1713041442316,-500.0,0.00317808,120]
[322537239,1713041442327,-500.0,0.00317808,120]
[322537240,1713041442337,-852.48,0.00317808,120]
[322537241,1713041442347,-581.91,0.00317808,120]
[322537242,1713041442356,-500.0,0.00317808,120]
[322537243,1713041442366,-1655.23,0.00317808,120]
[322537244,1713041442376,-154.79389819,0.00323077,120]
[322537245,1713041442386,-154.79389819,0.00338462,120]
[322537246,1713041442396,-500.0,0.00339722,120]
[322537247,1713041442412,-177.28,0.00339722,120]
[322537248,1713041442422,-500.0,0.00339724,120]
[322537249,1713041442431,-500.0,0.00339724,120]
[322537250,1713041442441,-565.25,0.00339724,120]
[322537251,1713041442451,-500.0,0.00339725,120]
[322537252,1713041442461,-687.61,0.00339725,120]
[322537253,1713041442470,-500.0,0.00339725,120]
[322537254,1713041442480,-500.0,0.00339725,120]
[322537255,1713041442489,-2239.15,0.00339725,120]
[322537256,1713041442499,-500.0,0.00339725,120]
[322537257,1713041442510,-246.65732901,0.00339726,120]
[322537258,1713041442519,-367.58889207,0.00339726,120]
[322537259,1713041442529,-500.0,0.00339726,120]
[322537260,1713041442538,-500.0,0.00339726,120]
[322537261,1713041442548,-852.48,0.00339726,120]
[322537262,1713041442558,-581.91,0.00339726,120]
[322537263,1713041442568,-500.0,0.00339726,120]
[322537264,1713041442577,-1655.23,0.00339726,120]
[322537265,1713041442587,-154.79389819,0.00353846,120]
[322537266,1713041442596,-500.0,0.0036164,120]
[322537267,1713041442606,-500.0,0.00361642,120]
[322537268,1713041442615,-500.0,0.00361642,120]
[322537269,1713041442625,-565.25,0.00361642,120]
[322537270,1713041442635,-500.0,0.00361643,120]
[322537271,1713041442644,-500.0,0.00361643,120]
[322537272,1713041442660,-500.0,0.00361643,120]
[322537273,1713041442671,-852.48,0.00361643,120]
[322537274,1713041442688,-687.61,0.00361643,120]
[322537275,1713041442699,-500.0,0.00361643,120]
[322537276,1713041442710,-581.91,0.00361643,120]
[322537277,1713041442720,-500.0,0.00361643,120]
[322537278,1713041442733,-500.0,0.00361643,120]
[322537279,1713041442743,-1655.23,0.00361643,120]
[322537280,1713041442754,-2239.15,0.00361643,120]
[322537281,1713041442763,-500.0,0.00361643,120]
[322537282,1713041442774,-154.79389819,0.00369231,120]
[322537283,1713041442783,-602.55094751,0.00383558,120]
[322537284,1713041442793,-500.0,0.0038356,120]
[322537285,1713041442802,-500.0,0.0038356,120]
[322537286,1713041442812,-565.25,0.0038356,120]
[322537288,1713041442822,-500.0,0.00383561,120]
[322537289,1713041442834,-167.77171278,0.00383561,120]
[322537292,1713041442844,-500.0,0.00383561,120]
[322537296,1713041442855,-852.48,0.00383561,120]
[322537299,1713041442864,-687.61,0.00383561,120]
[322537302,1713041442874,-500.0,0.00383561,120]
[322537304,1713041442884,-581.91,0.00383561,120]
[322537305,1713041442893,-500.0,0.00383561,120]
[322537306,1713041442907,-500.0,0.00383561,120]
[322537307,1713041442917,-1655.23,0.00383561,120]
[322537308,1713041442926,-2239.15,0.00383561,120]
[322537309,1713041442936,-500.0,0.00383561,120]
[322537310,1713041442945,-154.79389819,0.00384615,120]
[322537311,1713041442955,-300.0,0.004,120]
[322537312,1713041442965,-155.29,0.004,120]
[322537313,1713041442975,-510.58,0.00405478,120]
[322537314,1713041442985,-500.0,0.00405478,120]
[322537315,1713041442995,-565.25,0.00405478,120]
[322537316,1713041443004,-687.61,0.00405478,120]
[322537317,1713041443015,-399.65,0.00405478,120]
[322537318,1713041443024,-500.0,0.00405478,120]
[322537319,1713041443034,-2239.15,0.00405478,120]
[322537320,1713041443043,-500.0,0.00405478,120]